fUSD/lending_fUSD_20251224
["ID","MTS","AMOUNT","RATE_DAILY","PERIOD"]
[399683192,1766617841616,-6533.0,0.00016102,2]
[399683193,1766617841627,-166.66,0.00016127,2]
[399683194,1766617841637,-257.0,0.00016194,2]
[399683195,1766617841646,-257.0,0.00016202,2]
[399683196,1766617841658,-257.0,0.00016281,2]
[399683197,1766617841670,-257.0,0.00016297,2]
[399683198,1766617841680,-203.86,0.00016307,2]
[399683199,1766617841690,-257.0,0.00016321,2]
[399683200,1766617841701,-257.0,0.00016335,2]
[399683201,1766617841711,-257.0,0.00016375,2]
[399683202,1766617841721,-12584.9,0.00016438,2]
[399683203,1766617841731,-12188.8,0.00016438,2]
[399683204,1766617841741,-257.0,0.00016469,2]
[399683205,1766617841751,-442.97,0.00016499,2]
[399683206,1766617841762,-200.0,0.00016499,2]
[399683207,1766617841773,-200.0,0.00016499,2]
[399683208,1766617841788,-152.0,0.00016499,2]
[399683209,1766617841798,-150.0,0.00016499,2]
[399683210,1766617841809,-217.814,0.00016499,2]
[399683211,1766617841819,-150.811,0.00016499,2]
[399683212,1766617841829,-228.266,0.00016499,2]
[399683213,1766617841840,-156.381,0.00016499,2]
[399683214,1766617841850,-250.0,0.00016499,2]
[399683215,1766617841860,-211.528,0.00016499,2]
[399683216,1766617841871,-250.0,0.00016499,2]
[399683217,1766617841882,-250.0,0.00016499,2]
[399683218,1766617841892,-166.0,0.00016499,2]
[399683219,1766617841903,-226.805,0.00016499,2]
[399683220,1766617841913,-166.66,0.00016642,2]
[399683221,1766617841931,-257.0,0.00016642,2]
[399683222,1766617841944,-2000.0,0.00016667,2]
[399683223,1766617841954,-2000.0,0.00016667,2]
[399683224,1766617841965,-2000.0,0.00016667,2]
[399683225,1766617841975,-2000.0,0.00016667,2]
[399683226,1766617841984,-2000.0,0.00016667,2]
[399683227,1766617841995,-2000.0,0.00016667,2]
[399683228,1766617842005,-500.0,0.00016699,2]
[399683229,1766617842014,-150.0,0.00016699,2]
[399683230,1766617842024,-150.0,0.00016699,2]
[399683231,1766617842034,-346.92554585,0.00016712,2]
[399683232,1766617842044,-164.84,0.00016712,2]
[399683233,1766617842055,-599.60298507,0.00016713,2]
[399683234,1766617842065,-500.0,0.00016726,2]
[399683235,1766617842076,-150.0,0.00016726,2]
[399683236,1766617842086,-500.0,0.00016754,2]
[399683237,1766617842097,-150.0,0.00016754,2]
[399683238,1766617842108,-257.0,0.00016762,2]
[399683239,1766617842118,-442.97,0.00016773,2]
[399683240,1766617842128,-500.0,0.00016781,2]
[399683241,1766617842139,-150.0,0.00016781,2]
[399683242,1766617842155,-257.0,0.0001679,2]
[399683243,1766617842166,-500.0,0.00016809,2]
[399683244,1766617842176,-200.0,0.00016809,2]
[399683245,1766617842188,-257.0,0.00016827,2]
[399683246,1766617842199,-257.0,0.00016832,2]
[399683247,1766617842211,-500.0,0.00016836,2]
[399683248,1766617842223,-500.0,0.00016863,2]
[399683249,1766617842234,-500.0,0.00016891,2]
[399683250,1766617842245,-257.0,0.00016896,2]
[399683251,1766617842255,-260.98879975,0.00016918,2]
[399683252,1766617842266,-322.81163651,0.00016921,2]
[399683253,1766617842277,-1254.3,0.00016922,2]
[399683254,1766617842288,-500.0,0.00016973,2]
[399683255,1766617842298,-500.0,0.00016973,2]
[399683256,1766617842309,-500.0,0.00016973,2]
[399683257,1766617842320,-500.0,0.00016973,2]
[399683258,1766617842331,-500.0,0.00016973,2]
[399683259,1766617842341,-500.0,0.00016973,2]
[399683260,1766617842352,-500.0,0.00016973,2]
[399683261,1766617842362,-257.0,0.00016985,2]
[399683262,1766617842373,-250.0,0.00017,2]
[399683263,1766617842384,-2000.0,0.00017,2]
[399683264,1766617842394,-257.0,0.00017018,2]
[399683265,1766617842404,-442.97,0.00017047,2]
[399683266,1766617842414,-257.0,0.0001705,2]
[399683267,1766617842425,-203.86,0.00017083,2]
[399683269,1766617842435,-257.0,0.00017085,2]
[399683270,1766617842445,-153.0,0.000171,2]
[399683271,1766617842455,-158.0,0.000171,2]
[399683272,1766617842466,-158.0,0.000171,2]
[399683273,1766617842476,-153.0,0.000171,2]
[399683274,1766617842487,-158.0,0.000171,2]
[399683275,1766617842497,-153.0,0.000171,2]
[399683276,1766617842511,-158.0,0.000171,2]
[399683277,1766617842522,-153.0,0.000171,2]
[399683280,1766617842533,-153.0,0.000171,2]
[399683282,1766617842544,-158.0,0.000171,2]
[399683283,1766617842554,-153.66193719,0.000171,2]
[399683284,1766617842564,-153.0,0.000171,2]
[399683285,1766617842574,-153.0,0.000171,2]
[399683286,1766617842588,-153.0,0.000171,2]
[399683287,1766617842599,-153.0,0.000171,2]
[399683288,1766617842609,-153.0,0.000171,2]
[399683289,1766617842620,-153.0,0.000171,2]
[399683290,1766617842631,-153.0,0.000171,2]
[399683291,1766617842641,-153.0,0.000171,2]
[399683292,1766617842652,-153.0,0.000171,2]
[399683294,1766617842663,-153.0,0.000171,2]
[399683295,1766617842674,-153.0,0.000171,2]
[399683296,1766617842684,-153.0,0.000171,2]
[399683298,1766617842694,-153.0,0.000171,2]
[399683300,1766617842705,-153.0,0.000171,2]
[399683301,1766617842715,-153.0,0.000171,2]
[399683302,1766617842725,-153.0,0.000171,2]
[399683303,1766617842735,-153.0,0.000171,2]
[399683304,1766617842745,-153.0,0.000171,2]
[399683305,1766617842755,-153.0,0.000171,2]
[399683306,1766617842766,-153.0,0.000171,2]
[399683308,1766617842776,-153.0,0.000171,2]
[399683309,1766617842787,-153.0,0.000171,2]
[399683310,1766617842798,-153.0,0.000171,2]
[399683311,1766617842809,-153.0,0.000171,2]
[399683312,1766617842819,-153.0,0.000171,2]
[399683313,1766617842829,-153.0,0.000171,2]
[399683314,1766617842839,-153.0,0.000171,2]
[399683315,1766617842850,-153.0,0.000171,2]
[399683316,1766617842861,-153.0,0.000171,2]
[399683317,1766617842875,-153.0,0.000171,2]
[399683318,1766617842885,-153.0,0.000171,2]
[399683319,1766617842897,-153.0,0.000171,2]
[399683320,1766617842908,-153.0,0.000171,2]
[399683321,1766617842919,-153.0,0.000171,2]
[399683322,1766617842929,-153.0,0.000171,2]
[399683323,1766617842940,-153.0,0.000171,2]
[399683324,1766617842950,-153.0,0.000171,2]
[399683325,1766617842961,-153.0,0.000171,2]
[399683326,1766617842971,-153.0,0.000171,2]
[399683327,1766617842982,-153.0,0.000171,2]
[399683328,1766617842992,-153.0,0.000171,2]
[399683329,1766617843002,-153.0,0.000171,2]
[399683330,1766617843012,-153.0,0.000171,2]
[399683331,1766617843022,-153.0,0.000171,2]
[399683332,1766617843033,-153.0,0.000171,2]
[399683333,1766617843043,-153.0,0.000171,2]
[399683334,1766617843053,-166.34344729,0.000171,2]
[399683335,1766617843064,-152.0,0.000171,2]
[399683336,1766617843075,-1256.0,0.000171,2]
[399683337,1766617843086,-152.0,0.000171,2]
[399683338,1766617843097,-1256.0,0.000171,2]
[399683339,1766617843107,-152.0,0.000171,2]
[399683340,1766617843118,-1256.0,0.000171,2]
[399683341,1766617843128,-152.0,0.000171,2]
[399683342,1766617843138,-1256.0,0.000171,2]
[399683343,1766617843149,-152.0,0.000171,2]
[399683344,1766617843159,-152.0,0.000171,2]
[399683345,1766617843170,-1256.0,0.000171,2]
[399683346,1766617843180,-286.13362621,0.000171,2]
[399683347,1766617843191,-152.0,0.000171,2]
[399683348,1766617843201,-1256.0,0.000171,2]
[399683349,1766617843211,-152.0,0.000171,2]
[399683350,1766617843222,-1256.0,0.000171,2]
[399683351,1766617843236,-152.0,0.000171,2]
[399683352,1766617843246,-1256.0,0.000171,2]
[399683353,1766617843260,-152.0,0.000171,2]
[399683354,1766617843270,-1256.0,0.000171,2]
[399683355,1766617843280,-152.0,0.000171,2]
[399683356,1766617843291,-1256.0,0.000171,2]
[399683357,1766617843301,-152.0,0.000171,2]
[399683358,1766617843312,-1256.0,0.000171,2]
[399683359,1766617843322,-152.0,0.000171,2]
[399683360,1766617843333,-1256.0,0.000171,2]
[399683361,1766617843343,-152.0,0.000171,2]
[399683362,1766617843353,-1256.0,0.000171,2]
[399683363,1766617843364,-1256.0,0.000171,2]
[399683365,1766617843374,-209.24615672,0.000171,2]
[399683368,1766617843384,-1256.0,0.000171,2]
[399683371,1766617843395,-1256.0,0.000171,2]
[399683373,1766617843405,-1256.0,0.000171,2]
[399683375,1766617843415,-1256.0,0.000171,2]
[399683377,1766617843425,-153.0,0.000171,2]
[399683379,1766617843437,-1256.0,0.000171,2]
[399683380,1766617843448,-153.0,0.000171,2]
[399683381,1766617843458,-1256.0,0.000171,2]
[399683382,1766617843467,-153.0,0.000171,2]
[399683383,1766617843476,-1256.0,0.000171,2]
[399683384,1766617843487,-1256.0,0.000171,2]
[399683385,1766617843496,-1256.0,0.000171,2]
[399683386,1766617843507,-1256.0,0.000171,2]
[399683387,1766617843517,-153.0,0.000171,2]
[399683388,1766617843527,-1256.0,0.000171,2]
[399683389,1766617843537,-153.0,0.000171,2]
[399683390,1766617843547,-1256.0,0.000171,2]
[399683391,1766617843557,-153.0,0.000171,2]
[399683392,1766617843568,-1172.26197719,0.000171,2]
[399683393,1766617843579,-153.0,0.000171,2]
[399683394,1766617843591,-166.66,0.00017157,2]
[399683395,1766617843601,-257.0,0.00017258,2]
[399683396,1766617843611,-3292.0,0.00017275,2]
[399683397,1766617843622,-442.97,0.00017321,2]
[399683398,1766617843632,-151.42395307,0.00017325,2]
[399683399,1766617843642,-257.0,0.00017326,2]
[399683400,1766617843653,-257.0,0.00017342,2]
[399683401,1766617843667,-1600.0,0.0001735,2]
[399683402,1766617843677,-257.0,0.00017386,2]
[399683403,1766617843688,-1252.0,0.00017468,2]
[399683404,1766617843698,-257.0,0.00017494,2]
[399683405,1766617843707,-500.0,0.00017521,2]
[399683406,1766617843717,-500.0,0.00017521,2]
[399683407,1766617843727,-353.92874992,0.00017521,2]
[399683408,1766617843737,-500.0,0.00017521,2]
[399683409,1766617843747,-500.0,0.00017521,2]
[399683410,1766617843757,-442.98,0.00017595,2]
[399683411,1766617843767,-179.2,0.0001765,2]
[399683412,1766617843776,-166.66,0.00017672,2]
[399683413,1766617843786,-307.88,0.000177,2]
[399683414,1766617843796,-1776.71046672,0.00017709,2]
[399683415,1766617843806,-500.0,0.00017808,2]
[399683416,1766617843826,-500.0,0.00017835,2]
[399683417,1766617843840,-203.86,0.0001786,2]
[399683418,1766617843850,-155.59167587,0.00017863,2]
[399683419,1766617843860,-247.27559817,0.00017871,2]
[399683420,1766617843872,-12584.9,0.00017932,2]
[399683421,1766617843883,-500.0,0.00017973,2]
[399683422,1766617843893,-500.41261549,0.00017973,2]
[399683423,1766617843905,-500.0,0.00017973,2]
[399683424,1766617843915,-500.0,0.00017973,2]
[399683425,1766617843925,-500.0,0.00017973,2]
[399683426,1766617843936,-500.0,0.00017973,2]
[399683427,1766617843946,-500.0,0.00017973,2]
[399683428,1766617843958,-500.82117656,0.00017973,2]
[399683429,1766617843969,-500.0,0.00017973,2]
[399683430,1766617843980,-500.37592798,0.00017973,2]
[399683431,1766617843991,-500.4712,0.00017973,2]
[399683432,1766617844000,-500.0,0.00017973,2]
[399683433,1766617844011,-500.0,0.00017973,2]
[399683434,1766617844021,-640.00175838,0.00017973,2]
[399683435,1766617844032,-500.0,0.00017973,2]
[399683436,1766617844042,-500.0,0.00017973,2]
[399683437,1766617844052,-500.0,0.00017973,2]
[399683438,1766617844062,-500.67919196,0.00017973,2]
[399683439,1766617844073,-500.22140656,0.00017973,2]
[399683440,1766617844083,-500.42799318,0.00017973,2]
[399683441,1766617844093,-500.0,0.00017973,2]
[399683442,1766617844104,-162.47512997,0.00017973,2]
[399683443,1766617844114,-570.6142812,0.00017973,2]
[399683444,1766617844124,-500.0,0.00017973,2]
[399683445,1766617844134,-500.3718357,0.00017973,2]
[399683446,1766617844145,-575.447525,0.00017973,2]
[399683447,1766617844155,-160.27935937,0.00017973,2]
[399683448,1766617844171,-500.0,0.00017973,2]
[399683449,1766617844182,-160.28006419,0.00017973,2]
[399683450,1766617844193,-640.32887025,0.00017973,2]
[399683451,1766617844203,-500.0,0.00017973,2]
[399683452,1766617844214,-500.0,0.00017973,2]
[399683453,1766617844224,-556.28902604,0.00017973,2]
[399683454,1766617844235,-500.0,0.00017973,2]
[399683455,1766617844246,-160.28006364,0.00017973,2]
[399683456,1766617844256,-156.62518783,0.00017973,2]
[399683457,1766617844267,-500.0,0.00017973,2]
[399683458,1766617844278,-519.15656558,0.00017973,2]
[399683459,1766617844288,-334.79703865,0.00017973,2]
[399683460,1766617844299,-500.0,0.00017973,2]
[399683461,1766617844310,-500.62013738,0.00017973,2]
[399683462,1766617844320,-160.27197192,0.00017973,2]
[399683463,1766617844331,-500.0,0.00017973,2]
[399683464,1766617844342,-500.0,0.00017973,2]
[399683465,1766617844352,-530.33299684,0.00017973,2]
[399683466,1766617844363,-164.90862468,0.00017973,2]
[399683467,1766617844374,-500.0,0.00017973,2]
[399683468,1766617844384,-500.0,0.00017973,2]
[399683469,1766617844395,-181.04592189,0.00017973,2]
[399683470,1766617844405,-207.58860749,0.00017973,2]
[399683471,1766617844415,-500.0,0.00017973,2]
[399683472,1766617844426,-500.0,0.00017973,2]
[399683473,1766617844437,-500.0,0.00017973,2]
[399683474,1766617844447,-506.49407509,0.00017973,2]
[399683475,1766617844457,-500.0,0.00017973,2]
[399683476,1766617844468,-500.0,0.00017973,2]
[399683477,1766617844478,-500.0,0.00017973,2]
[399683478,1766617844488,-500.36254835,0.00017973,2]
[399683479,1766617844498,-150.25848283,0.00017973,2]
[399683480,1766617844509,-500.19289853,0.00017973,2]
[399683481,1766617844519,-500.0,0.00017973,2]
[399683482,1766617844534,-500.38208314,0.00017973,2]
[399683483,1766617844546,-150.01500017,0.00017973,2]
[399683484,1766617844557,-500.0,0.00017973,2]
[399683485,1766617844568,-500.0,0.00017973,2]
[399683486,1766617844580,-500.0,0.00017973,2]
[399683487,1766617844595,-500.0,0.00017973,2]
[399683488,1766617844606,-500.0,0.00017973,2]
[399683489,1766617844618,-500.0,0.00017973,2]
[399683490,1766617844631,-500.0,0.00017973,2]
[399683491,1766617844642,-500.0,0.00017973,2]
[399683492,1766617844653,-160.2351428,0.00017973,2]
[399683493,1766617844664,-509.43327994,0.00017973,2]
[399683494,1766617844675,-500.0,0.00017973,2]
[399683495,1766617844686,-500.0,0.00017973,2]
[399683496,1766617844697,-500.0,0.00017973,2]
[399683497,1766617844709,-566.59580681,0.00017973,2]
[399683498,1766617845082,-500.0,0.00017973,2]
[399683499,1766617845094,-500.0,0.00017973,2]
[399683500,1766617845104,-359.76179104,0.00018081,2]
[399683501,1766617845115,-166.66,0.00018188,2]
[399683502,1766617845126,-151.42395307,0.00018287,2]
[399683503,1766617845136,-300.0,0.00018357,2]
[399683504,1766617845152,-300.0,0.00018414,2]
[399683505,1766617845162,-300.0,0.00018423,2]
[399683506,1766617845173,-179.2,0.00018464,2]
[399683507,1766617845183,-300.0,0.00018515,2]
[399683508,1766617845194,-250.55305076,0.00018521,2]
[399683509,1766617845204,-357.01582357,0.00018521,2]
[399683510,1766617845214,-1000.0,0.00018521,2]
[399683511,1766617845224,-1000.0,0.00018521,2]
[399683512,1766617845235,-1000.0,0.00018521,2]
[399683513,1766617845245,-1000.0,0.00018521,2]
[399683514,1766617845255,-1000.0,0.00018521,2]
[399683515,1766617845266,-1000.0,0.00018521,2]
[399683516,1766617845276,-1000.0,0.00018521,2]
[399683517,1766617845287,-1000.0,0.00018521,2]
[399683518,1766617845298,-1000.0,0.00018521,2]
[399683519,1766617845309,-1000.0,0.00018521,2]
[399683520,1766617845319,-1000.0,0.00018521,2]
[399683521,1766617845330,-1000.0,0.00018521,2]
[399683522,1766617845341,-1146.80307753,0.00018521,2]
[399683523,1766617845351,-1000.0,0.00018521,2]
[399683524,1766617845362,-900.36560755,0.00018521,2]
[399683525,1766617845372,-1000.0,0.00018521,2]
[399683526,1766617845382,-1000.0,0.00018521,2]
[399683527,1766617845392,-1000.0,0.00018521,2]
[399683528,1766617845402,-1000.0,0.00018521,2]
[399683529,1766617845413,-500.54278479,0.00018521,2]
[399683530,1766617845423,-1005.88663379,0.00018521,2]
[399683531,1766617845433,-502.64435602,0.00018521,2]
[399683532,1766617845444,-300.0,0.00018548,2]
[399683533,1766617845454,-307.88,0.00018563,2]
[399683534,1766617845463,-300.0,0.00018607,2]
[399683535,1766617845474,-518.49334789,0.0001862,2]
[399683536,1766617845484,-300.0,0.00018625,2]
[399683537,1766617845494,-203.86,0.00018636,2]
[399683538,1766617845504,-150.0,0.00018703,2]
[399683539,1766617845514,-150.0,0.00018715,2]
[399683540,1766617845524,-300.0,0.00018715,2]
[399683541,1766617845534,-260.82,0.00018718,2]
[399683542,1766617845545,-1000.0,0.00018719,2]
[399683543,1766617845555,-1000.0,0.0001872,2]
[399683544,1766617845565,-150.0,0.00018722,2]
[399683545,1766617845575,-300.0,0.0001873,2]
[399683546,1766617845588,-300.0,0.00018734,2]
[399683547,1766617845598,-150.0,0.00018736,2]
[399683548,1766617845609,-196.59225828,0.00018739,2]
[399683549,1766617845620,-1000.0,0.00018743,2]
[399683550,1766617845630,-300.0,0.00018746,2]
[399683551,1766617845640,-300.0,0.00018748,2]
[399683552,1766617845650,-300.0,0.00018749,2]
[399683553,1766617845659,-1000.0,0.0001875,2]
[399683554,1766617845670,-150.0,0.00018753,2]
[399683555,1766617845680,-150.0,0.00018756,2]
[399683556,1766617845690,-150.0,0.0001876,2]
[399683557,1766617845700,-300.0,0.00018761,2]
[399683558,1766617845710,-1000.0,0.00018762,2]
[399683559,1766617845720,-300.0,0.00018769,2]
[399683560,1766617845730,-1000.0,0.00018772,2]
[399683561,1766617845741,-1000.0,0.00018776,2]
[399683562,1766617845751,-1000.0,0.00018777,2]
[399683563,1766617845761,-300.0,0.00018779,2]
[399683564,1766617845770,-300.0,0.00018781,2]
[399683565,1766617845780,-1000.0,0.00018786,2]
[399683566,1766617845790,-263.19120433,0.00018796,2]
[399683567,1766617845800,-300.0,0.00018797,2]
[399683568,1766617845810,-300.0,0.00018799,2]
[399683569,1766617845820,-1000.0,0.00018805,2]
[399683570,1766617845829,-1000.0,0.00018806,2]
[399683571,1766617845839,-300.0,0.00018806,2]
[399683572,1766617845849,-300.0,0.00018808,2]
[399683573,1766617845859,-150.0,0.00018812,2]
[399683574,1766617845869,-1000.0,0.00018816,2]
[399683575,1766617845879,-150.0,0.00018817,2]
[399683576,1766617845889,-150.0,0.00018818,2]
[399683577,1766617845900,-210.31131003,0.00018819,2]
[399683578,1766617845911,-150.0,0.00018834,2]
[399683579,1766617845920,-300.0,0.00018834,2]
[399683580,1766617845931,-1000.0,0.00018835,2]
[399683581,1766617845940,-300.0,0.00018837,2]
[399683582,1766617845950,-1000.0,0.0001884,2]
[399683583,1766617845960,-1000.0,0.00018845,2]
[399683584,1766617845971,-300.0,0.00018846,2]
[399683585,1766617845981,-200.0,0.00018848,2]
[399683586,1766617845991,-1000.0,0.0001886,2]
[399683587,1766617846002,-1000.0,0.00018863,2]
[399683588,1766617846011,-1000.0,0.00018866,2]
[399683589,1766617846022,-150.0,0.0001887,2]
[399683590,1766617846031,-150.0,0.00018871,2]
[399683591,1766617846042,-300.0,0.00018874,2]
[399683592,1766617846052,-300.0,0.00018877,2]
[399683593,1766617846063,-1000.0,0.00018897,2]
[399683594,1766617846073,-254.13060141,0.00018898,2]
[399683595,1766617846083,-150.0,0.00018898,2]
[399683596,1766617846094,-150.0,0.000189,2]
[399683597,1766617846104,-322.81163651,0.00018903,2]
[399683598,1766617846114,-1000.0,0.00018906,2]
[399683599,1766617846124,-150.0,0.00018913,2]
[399683600,1766617846134,-300.0,0.00018913,2]
[399683601,1766617846143,-300.0,0.00018919,2]
[399683602,1766617846153,-300.0,0.0001892,2]
[399683603,1766617846164,-1000.0,0.00018921,2]
[399683604,1766617846174,-1000.0,0.00018922,2]
[399683605,1766617846184,-1000.0,0.00018924,2]
[399683606,1766617846194,-1000.0,0.00018932,2]
[399683607,1766617846204,-300.0,0.00018932,2]
[399683608,1766617846214,-150.0,0.00018933,2]
[399683609,1766617846225,-1000.0,0.00018939,2]
[399683610,1766617846235,-150.0,0.00018944,2]
[399683611,1766617846246,-150.0,0.00018945,2]
[399683612,1766617846255,-150.0,0.00018951,2]
[399683613,1766617846266,-150.0,0.00018955,2]
[399683614,1766617846276,-1000.0,0.00018957,2]
[399683615,1766617846286,-300.0,0.00018964,2]
[399683616,1766617846297,-300.0,0.00018969,2]
[399683617,1766617846309,-333896.173421,0.0001897,2]
[399683618,1766617846320,-150.0,0.00018971,2]
[399683619,1766617846330,-150.0,0.00018973,2]
[399683620,1766617846340,-150.18672367,0.00018973,2]
[399683621,1766617846351,-1000.0,0.00018978,2]
[399683622,1766617846361,-300.0,0.00018982,2]
[399683623,1766617846371,-300.0,0.0001899,2]
[399683624,1766617846382,-2129.0,0.00018995,2]
[399683625,1766617846392,-33680.06166815,0.00019,2]
[399683626,1766617846402,-969.15421235,0.00019,2]
[399683627,1766617846412,-2111.79667416,0.00019,2]
[399683628,1766617846423,-5000.0,0.00019,3]
[399683629,1766617846433,-300.0,0.00019,2]
[399683630,1766617846443,-200.0,0.00019,2]
[399683631,1766617846453,-836.0,0.00019,2]
[399683632,1766617846463,-154.0,0.00019,2]
[399683633,1766617846474,-836.0,0.00019,2]
[399683634,1766617846484,-154.61412107,0.00019,2]
[399683635,1766617846494,-836.0,0.00019,2]
[399683636,1766617846504,-1256.0,0.00019,2]
[399683637,1766617846513,-152.0,0.00019,2]
[399683638,1766617846524,-152.0,0.00019,2]
[399683639,1766617846534,-836.0,0.00019,2]
[399683640,1766617846543,-152.0,0.00019,2]
[399683641,1766617846553,-1256.0,0.00019,2]
[399683642,1766617846563,-152.0,0.00019,2]
[399683643,1766617846573,-152.0,0.00019,2]
[399683644,1766617846586,-875.75031902,0.00019,2]
[399683645,1766617846596,-1256.0,0.00019,2]
[399683646,1766617846607,-152.0,0.00019,2]
[399683647,1766617846617,-152.0,0.00019,2]
[399683648,1766617846628,-1256.0,0.00019,2]
[399683649,1766617846638,-152.0,0.00019,2]
[399683650,1766617846648,-152.0,0.00019,2]
[399683651,1766617846659,-1256.0,0.00019,2]
[399683652,1766617846670,-152.0,0.00019,2]
[399683653,1766617846680,-152.0,0.00019,2]
[399683654,1766617846690,-1256.0,0.00019,2]
[399683655,1766617846700,-152.0,0.00019,2]
[399683656,1766617846710,-152.0,0.00019,2]
[399683657,1766617846720,-1256.0,0.00019,2]
[399683658,1766617846731,-152.0,0.00019,2]
[399683659,1766617846741,-152.0,0.00019,2]
[399683660,1766617846751,-1256.0,0.00019,2]
[399683661,1766617846762,-152.0,0.00019,2]
[399683662,1766617846772,-152.0,0.00019,2]
[399683663,1766617846782,-1256.0,0.00019,2]
[399683664,1766617846792,-152.0,0.00019,2]
[399683665,1766617846801,-152.0,0.00019,2]
[399683666,1766617846811,-1256.0,0.00019,2]
[399683667,1766617846821,-152.0,0.00019,2]
[399683668,1766617846831,-152.0,0.00019,2]
[399683669,1766617846842,-1256.0,0.00019,2]
[399683670,1766617846852,-152.0,0.00019,2]
[399683671,1766617846863,-152.0,0.00019,2]
[399683672,1766617846873,-1256.0,0.00019,2]
[399683673,1766617846883,-152.0,0.00019,2]
[399683674,1766617846893,-152.0,0.00019,2]
[399683675,1766617846903,-152.0,0.00019,2]
[399683676,1766617846913,-1256.0,0.00019,2]
[399683677,1766617846923,-152.0,0.00019,2]
[399683678,1766617846934,-152.0,0.00019,2]
[399683679,1766617846944,-152.0,0.00019,2]
[399683680,1766617846954,-1256.0,0.00019,2]
[399683681,1766617846965,-152.0,0.00019,2]
[399683682,1766617846975,-152.0,0.00019,2]
[399683683,1766617846985,-1256.0,0.00019,2]
[399683684,1766617847000,-152.0,0.00019,2]
[399683685,1766617847010,-152.0,0.00019,2]
[399683686,1766617847020,-1256.0,0.00019,2]
[399683687,1766617847030,-152.0,0.00019,2]
[399683688,1766617847041,-152.0,0.00019,2]
[399683689,1766617847052,-1256.0,0.00019,2]
[399683690,1766617847062,-152.0,0.00019,2]
[399683691,1766617847073,-152.0,0.00019,2]
[399683692,1766617847083,-1256.0,0.00019,2]
[399683693,1766617847095,-152.0,0.00019,2]
[399683694,1766617847104,-152.0,0.00019,2]
[399683695,1766617847115,-1256.0,0.00019,2]
[399683696,1766617847126,-152.0,0.00019,2]
[399683697,1766617847136,-1256.0,0.00019,2]
[399683698,1766617847146,-152.0,0.00019,2]
[399683699,1766617847156,-1256.0,0.00019,2]
[399683700,1766617847167,-152.0,0.00019,2]
[399683701,1766617847178,-152.0,0.00019,2]
[399683702,1766617847193,-1256.0,0.00019,2]
[399683703,1766617847204,-152.0,0.00019,2]
[399683704,1766617847214,-1256.0,0.00019,2]
[399683705,1766617847225,-152.0,0.00019,2]
[399683706,1766617847235,-1256.0,0.00019,2]
[399683707,1766617847246,-152.0,0.00019,2]
[399683708,1766617847257,-1256.0,0.00019,2]